Cogmind - Beta 9.4 @@@ ROGUE MODE // 2020.01.30 @ 21:20:00 Player: Judas Result: Destroyed by as-62031 with Assembled Heavy Rifle Performance ------------- Evolutions (0) 0 Regions Visited (2) 400 Robots Destroyed (8) 40 Value Destroyed (156) 156 Prototype IDs (0) 0 Alien Tech Used (0) 0 Bonus (0) 0 TOTAL SCORE: 596 Bonus ------- None Cogmind --------- Core Integrity 0/250 Matter 274/300 Energy 87/100 System Corruption 0% Temperature Cool (188) Movement Core (400) Ox7 Location -10/Mines Parts ------- > --- POWER (1) -------- (None) > --- PROPULSION (2) --- (None) > --- UTILITY (2) ------ Medium Storage Unit Large Storage Unit > --- WEAPON (2) ------- (None) > --- INVENTORY (14) --- Light Ion Engine Light Treads Light Treads Wheel Hover Unit Hover Unit Assault Rifle Light Assault Rifle Peak State ------------ > --- POWER ------------ Light Nuclear Core > --- PROPULSION ------- Wheel Wheel > --- UTILITY ---------- Medium Storage Unit Large Storage Unit > --- WEAPON ----------- Assault Rifle Light Assault Rifle > --- INVENTORY -------- Light Ion Engine Light Ion Engine Light Treads Light Treads Wheel Hover Unit Hover Unit Assault Rifle Light Assault Rifle Light Cannon Light Cannon [Rating: 10] Favorites ----------- Power Light Ion Engine Engine Light Ion Engine Power Core Light Nuclear Core Propulsion Wheel Leg Aluminum Leg Wheel Wheel Hover Unit Hover Unit Utility Small Storage Unit Storage Small Storage Unit Weapon Light Assault Rifle Ballistic Gun Light Assault Rifle Ballistic Cannon Light Cannon Build | -11 -10 -10 ------- Run | Scr Mat Min Slots Evolved . | . . . Power . | . . . Propulsion . | . . . Utility . | . . . Weapon . | . . . Parts Attached 16 | 3 8 5 Power 3 | . 1 2 Engine 2 | . 1 1 Core 1 | . . 1 Reactor . | . . . Propulsion 7 | 2 4 1 Treads . | . . . Leg . | . . . Wheel 5 | 2 2 1 Hover 2 | . 2 . Flight . | . . . Utility 3 | 1 2 . Device . | . . . Storage 3 | 1 2 . Processor . | . . . Hackware . | . . . Protection . | . . . Artifact . | . . . Weapon 3 | . 1 2 Energy Gun . | . . . Energy Cannon . | . . . Ballistic Gun 1 | . 1 . Ballistic Cannon 2 | . . 2 Launcher . | . . . Special Weapon . | . . . Impact Weapon . | . . . Slashing Weapon . | . . . Piercing Weapon . | . . . Special Melee Weapon . | . . . Unidentified Prototypes . | . . . Parts Lost 7 | . . 7 Power 2 | . . 2 Propulsion 2 | . . 2 Utility . | . . . Weapon 3 | . . 3 Highest Loss Streak 7 | . . 7 Average Slot Usage (%) 98 | . 100 96 Engine 12 | . 14 8 Core 1 | . . 4 Wheel 26 | . 26 25 Storage 28 | . 28 28 Ballistic Gun 27 | . 28 25 Naked Turns . | . . . Heaviest Build 32 | 14 32 32 Greatest Support 20 | 20 20 20 Greatest Overweight (x) 2 | . 2 1 Average Overweight (x) . | . . 1 Largest Inventory Capacity 14 | 8 14 14 Average Capacity 11 | 7 11 14 Most Carried 11 | 6 10 11 Average Carried 8 | 5 7 10 Final Capacity 14 | 8 14 14 Final Carried 10 | 6 10 8 Class Distribution -------------------- 100% | Mutant Dominant Class ---------------- Mutant | -10/Materials Mutant | -10/Mines Resources | -11 -10 -10 ----------- Run | Scr Mat Min Matter Collected 406 | 238 84 84 Remotely . | . . . Salvage Created 260 | 64 84 112 Parts 17 | 5 4 8 Haulers Intercepted . | . . . Recyclers Shooed . | . . . Parts Field Recycled . | . . . Retrieved Matter . | . . . Parts Self-Destructed . | . . . Prevented . | . . . Kills | -11 -10 -10 ------- Run | Scr Mat Min Combat Hostiles Destroyed 6 | . 2 4 Guns 5 | . 2 3 Cannons 1 | . . 1 Classes Destroyed 4 | 1 1 2 Worker 1 | . . 1 Recycler 1 | 1 . . Grunt 4 | . 2 2 Assembled 2 | . . 2 Best Kill Streak 2 | 1 2 2 Combat Bots Only 2 | . 2 2 Max Kills in Single Turn 1 | 1 1 1 Gunslinging . | . . . Exploded . | . . . Melee . | . . . Uniques/NPCs Destroyed . | . . . Combat | -11 -10 -10 -------- Run | Scr Mat Min Damage Taken 1153 | . 112 1041 Core 259 | . 24 235 Absorbed by Shields . | . . . Core Remaining (%) 100 | 100 . . Volleys Fired 24 | 2 11 11 Largest 2 | 2 2 2 Hottest 70 | 40 40 70 Shots Fired 48 | 4 22 22 Gun 44 | 4 22 18 Cannon 4 | . . 4 Launcher . | . . . Special . | . . . Kinetic 48 | 4 22 22 Thermal . | . . . Explosive . | . . . Electromagnetic . | . . . Robot Hit Streak 8 | 1 8 7 Robot Miss Streak 4 | 1 2 4 Penetration Max . | . . . Secondary Targets . | . . . Shots Hit Robots 30 | 2 15 13 Core Hits 16 | 2 5 9 Critical Hits 1 | . . 1 Critical Kills 1 | . . 1 Critical Parts Destroyed . | . . . Melee Attacks . | . . . Impact . | . . . Slashing . | . . . Piercing . | . . . Sneak Attacks . | . . . Combat Hostiles . | . . . Follow-up Attacks . | . . . Damage Inflicted 358 | 22 169 167 Guns 322 | 22 169 131 Cannons 36 | . . 36 Explosions . | . . . Melee . | . . . Ramming . | . . . Kinetic 358 | 22 169 167 Thermal . | . . . Explosive . | . . . Electromagnetic . | . . . Impact . | . . . Slashing . | . . . Piercing . | . . . Highest Corruption . | . . . Average Corruption . | . . . Corruption Purged . | . . . Overload Shots . | . . . Overflow Damage . | . . . Projectiles . | . . . Explosions . | . . . Melee . | . . . Knockbacks 1 | . . 1 Impact . | . . . Kinetic 1 | . . 1 Secondary . | . . . Self-Inflicted Damage . | . . . Shots . | . . . Rammed . | . . . Targets Rammed . | . . . Kicked . | . . . Crushed . | . . . Highest Temperature 190 | . 6 190 Average Temperature 36 | . 6 46 Received Heat Transfer 410 | . 42 368 Siege Activations . | . . . Robots Corrupted . | . . . Combat Hostiles . | . . . Parts Fried . | . . . Impact Corruptions . | . . . Robots Melted . | . . . Combat Hostiles . | . . . Parts Melted . | . . . Heat Transferred . | . . . Parts Sabotaged . | . . . Parts Stolen . | . . . Parts Stripped . | . . . Power Chain Reactions . | . . . Missiles Intercepted . | . . . Alert | -11 -10 -10 ------- Run | Scr Mat Min Peak Influence 89 | 5 88 89 Average Influence 43 | 4 41 57 Maximum Alert Level . | . . . Low Security (%) 100 | 100 100 100 Level 1 . | . . . Level 2 . | . . . Level 3 . | . . . Level 4 . | . . . Level 5 . | . . . High Security . | . . . Max Security . | . . . Squads Dispatched 1 | . 1 . Investigation 1 | . 1 . Extermination . | . . . Reinforcement . | . . . Assault . | . . . Garrison . | . . . Intercept . | . . . Construction Impeded . | . . . Haulers Reinforced . | . . . Stealth | -11 -10 -10 --------- Run | Scr Mat Min Distress Signals 1 | . 1 . Communications Jammed . | . . . Distress Signals . | . . . Times Spotted 26 | . 8 18 Peak Tracking Total 17 | . 6 17 Tactical Retreats 1 | . . 1 Traps | -11 -10 -10 ------- Run | Scr Mat Min Traps Triggered 1 | . 1 . Indirectly . | . . . Trap Hack Attempts . | . . . Triggered . | . . . Disarmed . | . . . Reprogrammed . | . . . Reused . | . . . Traps Extracted . | . . . Installed . | . . . Triggered . | . . . Machines | -11 -10 -10 ---------- Run | Scr Mat Min Machines Disabled . | . . . Max in Single Turn . | . . . Machines Sabotaged . | . . . Garrisons Compromised . | . . . Overloaded Fab Kills . | . . . Fab Network Shutdowns . | . . . Hacking | -11 -10 -10 --------- Run | Scr Mat Min Machines Accessed 1 | . 1 . Terminals 1 | . 1 . Fabricators . | . . . Repair Stations . | . . . Recycling Units . | . . . Scanalyzers . | . . . Garrison Access . | . . . Total Hacks 2 | . 2 . Successful 2 | . 2 . Failed . | . . . Catastrophic . | . . . Database Lockouts . | . . . Manual 2 | . 2 . Terminals 2 | . 2 . Fabricators . | . . . Repair Stations . | . . . Recycling Units . | . . . Scanalyzers . | . . . Garrison Access . | . . . Terminal Hacks . | . . . Fabricator Hacks . | . . . Repair Station Hacks . | . . . Recycling Unit Hacks . | . . . Scanalyzer . | . . . Garrison Access Hacks . | . . . Unauthorized Hacks 4 | . 4 . Terminals 2 | . 2 . Track 1 | . 1 . Botnet 1 | . 1 . Fabricators . | . . . Repair Stations . | . . . Recycling Units . | . . . Scanalyzers . | . . . Garrison Access . | . . . Data Cores Recovered . | . . . Used . | . . . Hacking Detections 1 | . 1 . Full Trace Events . | . . . Feedback Events . | . . . Feedback Blocked . | . . . Robot Schematics Acquired . | . . . Robots Built . | . . . Matter . | . . . Time . | . . . Total Robot Build Rating . | . . . Part Schematics Acquired . | . . . Parts Built . | . . . Matter . | . . . Time . | . . . Total Part Build Rating . | . . . Parts Repaired . | . . . Time . | . . . Parts Recycled . | . . . Recycled Matter . | . . . Retrieved Matter . | . . . Retrieved Components . | . . . Parts Scanalyzed . | . . . Part Schematics Acquired . | . . . Parts Damaged . | . . . Bothacking | -11 -10 -10 ------------ Run | Scr Mat Min Used RIF Installer . | . . . Robots Hacked . | . . . Non-combat . | . . . Combat . | . . . Robot Hacks Applied . | . . . Relay Couplers Released . | . . . Robots Rewired . | . . . Allies Hacked . | . . . Hacks Repelled . | . . . Allies | -11 -10 -10 -------- Run | Scr Mat Min Total Allies . | . . . Largest Group . | . . . Highest-Rated Group . | . . . Highest-Rated Ally . | . . . Total Orders . | . . . Ally Attacks . | . . . Total Damage . | . . . Kills . | . . . Allies Corrupted . | . . . Allies Melted . | . . . Intel | -11 -10 -10 ------- Run | Scr Mat Min Robot Analysis Total . | . . . Derelict Logs Recovered . | . . . Drone Launches . | . . . Drone Recoveries . | . . . Exploration | -11 -10 -10 ------------- Run | Scr Mat Min Turns Passed 373 | 28 225 120 Spaces Moved 297 | 16 190 91 Core . | . . . Treads . | . . . Legs 6 | 6 . . Wheels 287 | 10 186 91 Hover 4 | . 4 . Flight . | . . . Fastest Speed 80 | 80 80 90 Average Speed 87 | 95 85 90 Slowest Speed 180 | 120 180 90 Overloaded Moves . | . . . Propulsion Burnouts . | . . . Robots Hopped . | . . . Cave-ins Triggered . | . . . Exploration Rate (%) 21 | 3 32 30 Regions Visited 2 Branch Regions 1 Pre-discovered Areas . | . . . Known Exits Taken . | . . . Unknown Exits Taken 2 | 1 1 . Scrap Searched 1 | . . 1 Spaces Dug . | . . . Terrain Destroyed . | . . . Melee . | . . . Projectile . | . . . AOE . | . . . Actions | -11 -10 -10 --------- Run | Scr Mat Min Total 365 | 24 233 108 Wait 12 | . 12 . Move 295 | 15 189 91 Hop . | . . . Pick Up 7 | 2 5 . Fast Attach 6 | 1 4 1 Attach 3 | . . 3 Detach . | . . . Swap 7 | 2 4 1 Drop 11 | 2 8 1 Fire 24 | 2 11 11 Melee . | . . . Ram . | . . . Kick . | . . . Crush . | . . . Escape Stasis . | . . . Rewire . | . . . Trap . | . . . Miscellaneous . | . . . Route ------- -11/Scrapyard -10/Materials -10/Mines History --------- Turn | Location | Event 7 | -11/Scrapyard | Discovered new exit (range 3) 29 | -11/Scrapyard | Entered Materials 53 | -10/Materials | Discovered new exit (range 12) 254 | -10/Materials | Entered Mines 318 | -10/Mines | Build established: Mutant 333 | -10/Mines | Assembled infested the area 338 | -10/Mines | Assisted by a Guerilla fighting off Assembled 367 | -10/Mines | Core integrity fell below 50% 372 | -10/Mines | Core integrity fell below 20% 374 | -10/Mines | Destroyed by as-62031 with Assembled Heavy Rifle Last Messages --------------- 00327_ Acquired Lgt. Nuclear Core. 00329_ Acquired 22 matter. 00333_ ALERT: Infestation in the mines, dispatching Demolisher response squad. 00338_ A derelict emerges from the shadows: "You need to get out of here! I've been tracking a group of Assembled to figure out where they're coming from, and they're closing on this area, come on!" 00345_ R-06 Scavenger suffers critical hit. 00345_ R-06 Scavenger destroyed. 00357_ as-08177 destroyed. 00360_ Lgt. Nuclear Core destroyed. 00360_ Wheel destroyed. 00365_ Assault Rifle destroyed. 00366_ Lgt. Assault Rifle destroyed. 00367_ Lgt. Ion Engine destroyed. 00368_ as-46949 knocked back. 00371_ as-42402 suffers critical hit. 00371_ as-42402 destroyed. 00372_ Lgt. Cannon destroyed. 00373_ Lgt. Cannon severed. Map ----- +----------------------------------------------------+ | ??????????????????????# #???????????????????????? | | ????????############### #???????????????????????? | | ????????# [ #???????????????????????? | | ????????# ! #???????????????????????? | | ????#####=!###############???????????????????????? | | ???## ##=%####??????????????????????????????????? | | ??## * ##?????????????????????????????????? | | ??# % #?????????????????????????????????? | | ?## * #?????????????????????????????????? | | ?# ## ##?????????????????????????????????? | | ?# #### ##?????????????????????????????????? | | ?# #??# ##????????????????????????????????? | | ?# #### #????????????????????????????????? | | ?## ## ##???????????????????????????????? | | ??## ##??????????????????????????????? | | ??## ###????????????????????????????? | | ! ####?????????????????????????? | | %= ##????????????????????????? | | ####### # ##???????????????????????? | | ??????#### # ##??????????????????????? | | ?????????# ##### ###????????????????????? | | ?????????# #???## aaa ##???????????????????? | | ?????????# #????# aa ##??????????????????? | | ?????????# #????# a a ##?????????????????? | | ?????????# #????# aaa%aa #?????????????????? | | ?????????# #????# ##a@a #?????????????????? | | ?????????# #????# ### ##?????????????????? | | ????????? #????# #?## ###??????????????????? | | ????????? #????## ##???###????????????????????? | | ?????????###??????####???????????????????????????? | | ?????????????????????????????????????????????????? | | ?????????????????????????????????????????????????? | | | | | | | | | | | | | | | | | | | | | | | | | | | | | | | | | | | | | +----------------------------------------------------+ Best States ------------- Heat Dissipation 25 Energy Generation 14 Energy Capacity 250 Matter Stores 300 Matter Capacity 300 Sight Range 16 Terrain Scan Density 10 Evasion (%) 44 Item Schematics ----------------- None Robot Schematics ------------------ None Fabricated ------------ Nothing Alien Tech Used ----------------- None Achievements -------------- None Challenges ------------ None Game ------ Seed LongswordCloakingSuite Manual? 0 Play Time 00:09:18 Cumulative 36.2 hours Start 2020.01.30 @ 21:12:29 End 2020.01.30 @ 21:20:00 Sessions 1 Manual Loads 0 Difficulty Rogue Special Mode None Game No. 70 Rogue 70 Adventurer 0 Explorer 0 Win Type - Total 0 Types 0/0/0/0/0/0/0 Lore% 25 Gallery% 31 Achievement% 26 Wizard Run 0 Options --------- ASCII 0 Keyboard 0 Movement Mouse Keybinds 0 Fullscreen 2 Font 18/SmallcapsGlow Map View 76x50 Tactical HUD 1 Map Filters NONE Filters NONE Steam 1 RUN: 8a13a8d9-b577-48a8-bbdd-6b6a067552d7